fUSD/lending_fUSD_20260112
["ID","MTS","AMOUNT","RATE_DAILY","PERIOD"]
[401400382,1768183842445,-173.30819609,0.00017073,2]
[401400383,1768183842457,-500.64635657,0.00017073,2]
[401400384,1768183842468,-501.06940337,0.00017073,2]
[401400385,1768183842479,-500.82881818,0.00017073,2]
[401400386,1768183842489,-503.84192068,0.00017073,2]
[401400387,1768183842499,-501.02949585,0.00017073,2]
[401400389,1768183842509,-500.43516927,0.00017073,2]
[401400390,1768183842519,-500.0,0.00017073,2]
[401400391,1768183842529,-501.49697472,0.00017073,2]
[401400392,1768183842539,-500.51202731,0.00017073,2]
[401400393,1768183842550,-501.77861007,0.00017073,2]
[401400394,1768183842560,-500.84079337,0.00017073,2]
[401400395,1768183842570,-500.95188997,0.00017073,2]
[401400396,1768183842581,-166.96227274,0.00017073,2]
[401400397,1768183842591,-500.52073568,0.00017073,2]
[401400398,1768183842602,-500.0,0.00017073,2]
[401400399,1768183842612,-500.51842778,0.00017073,2]
[401400400,1768183842622,-500.0,0.00017073,2]
[401400401,1768183842637,-500.19211788,0.00017073,2]
[401400402,1768183842649,-500.0,0.00017073,2]
[401400403,1768183842661,-501.85422751,0.00017073,2]
[401400404,1768183842671,-169.17232811,0.00017073,2]
[401400405,1768183842681,-163.4155148,0.00017073,2]
[401400406,1768183842691,-540.4577012,0.00017073,2]
[401400407,1768183842701,-502.11848052,0.00017073,2]
[401400408,1768183842711,-500.0,0.00017073,2]
[401400409,1768183842722,-500.57959935,0.00017073,2]
[401400410,1768183842733,-500.38035534,0.00017073,2]
[401400411,1768183842745,-500.0,0.00017073,2]
[401400412,1768183842755,-500.0,0.00017073,2]
[401400413,1768183842765,-503.00247421,0.00017073,2]
[401400414,1768183842775,-500.53829083,0.00017073,2]
[401400415,1768183842786,-500.26791262,0.00017073,2]
[401400416,1768183842796,-500.0,0.00017073,2]
[401400417,1768183842806,-500.84213941,0.00017073,2]
[401400418,1768183842816,-154.55098776,0.00017073,2]
[401400419,1768183842828,-154.55098776,0.00017091,2]
[401400420,1768183842842,-998.0,0.00017094,2]
[401400421,1768183842852,-336.38990579,0.00017094,2]
[401400422,1768183842862,-620.0,0.00017094,2]
[401400423,1768183842873,-322.6107,0.00017094,2]
[401400424,1768183842883,-533.88981491,0.00017094,2]
[401400425,1768183842893,-150.0,0.000171,2]
[401400426,1768183842904,-150.0,0.000171,2]
[401400427,1768183842914,-150.0,0.000171,2]
[401400428,1768183842924,-150.0,0.000171,2]
[401400429,1768183842935,-154.55098776,0.00017109,2]
[401400430,1768183842945,-1000.0,0.00017112,2]
[401400431,1768183842955,-903.0,0.00017114,2]
[401400432,1768183842966,-621.4646729,0.00017126,2]
[401400433,1768183842976,-154.55098776,0.00017127,2]
[401400434,1768183842987,-154.55098776,0.00017145,2]
[401400435,1768183843001,-154.55098776,0.00017164,2]
[401400436,1768183843011,-200.0,0.00017174,2]
[401400437,1768183843021,-179.28,0.00017178,2]
[401400438,1768183843031,-941.22,0.00017178,2]
[401400439,1768183843042,-179.28,0.00017178,2]
[401400440,1768183843051,-179.28,0.00017178,2]
[401400441,1768183843062,-179.28,0.00017178,2]
[401400442,1768183843071,-179.28,0.00017178,2]
[401400443,1768183843081,-179.28,0.00017178,2]
[401400444,1768183843091,-179.28,0.00017178,2]
[401400445,1768183843101,-179.28,0.00017178,2]
[401400446,1768183843111,-179.28,0.00017178,2]
[401400447,1768183843121,-179.28,0.00017178,2]
[401400448,1768183843133,-556.81,0.00017178,2]
[401400450,1768183843142,-150.0,0.00017178,2]
[401400451,1768183843152,-467.15,0.00017178,2]
[401400453,1768183843163,-556.81,0.00017178,2]
[401400456,1768183843173,-467.15,0.00017178,2]
[401400459,1768183843182,-556.81,0.00017178,2]
[401400461,1768183843196,-150.0,0.00017178,2]
[401400462,1768183843205,-467.15,0.00017178,2]
[401400463,1768183843214,-556.81,0.00017178,2]
[401400464,1768183843224,-467.15,0.00017178,2]
[401400465,1768183843233,-150.0,0.00017178,2]
[401400466,1768183843243,-154.55098776,0.00017182,2]
[401400467,1768183843252,-296.19,0.00017194,2]
[401400468,1768183843262,-154.55098776,0.000172,2]
[401400469,1768183843272,-4200.0,0.000172,6]
[401400470,1768183843282,-903.0,0.00017202,2]
[401400471,1768183843292,-154.55098776,0.00017218,2]
[401400472,1768183843302,-154.55098776,0.00017236,2]
[401400473,1768183843313,-5034.0,0.00017238,2]
[401400474,1768183843324,-28229.18264753,0.00017238,2]
[401400475,1768183843334,-45920.62755784,0.00017238,2]
[401400476,1768183843344,-25160.27080846,0.00017238,2]
[401400478,1768183844363,-1.7e-07,0.00017238,2]
[401400479,1768183844376,-10185.87604076,0.00017238,2]
[401400486,1768183845221,-335.07140779,0.00013724,2]
[401400487,1768183845232,-254.09289098,0.00015514,2]
[401400488,1768183845242,-254.09289098,0.00015514,2]
[401400489,1768183845252,-672.32,0.00016082,2]
[401400490,1768183845261,-179.28,0.00016356,2]
[401400491,1768183845272,-467.15,0.00016356,2]
[401400492,1768183845282,-29507.48449086,0.00017238,2]
[401400493,1768183845292,-83919.231,0.00017238,2]
[401400494,1768183845301,-154.55098776,0.00017255,2]
[401400495,1768183845311,-154.55098776,0.00017273,2]
[401400496,1768183845321,-150.0,0.0001728,2]
[401400497,1768183845331,-31573.3552909,0.00017285,2]
[401400498,1768183845341,-154.55098776,0.00017291,2]
[401400499,1768183845350,-903.0,0.00017291,2]
[401400500,1768183845360,-5600.0,0.000173,6]
[401400501,1768183845370,-154.55098776,0.00017309,2]
[401400502,1768183845379,-154.55098776,0.00017327,2]
[401400503,1768183845392,-154.55098776,0.00017345,2]
[401400505,1768183845402,-154.55098776,0.00017364,2]
[401400507,1768183845411,-903.0,0.0001738,2]
[401400509,1768183845424,-154.55098776,0.00017382,2]
[401400510,1768183845434,-150.0,0.000174,2]
[401400511,1768183845444,-150.0,0.000174,2]
[401400512,1768183845453,-154.55098776,0.000174,2]
[401400513,1768183845466,-150.0,0.000174,2]
[401400514,1768183845476,-7100.0,0.000174,6]
[401400515,1768183845485,-158.75566016,0.00017413,2]
[401400516,1768183845494,-150.76,0.00017415,2]
[401400517,1768183845504,-150.0,0.00017415,2]
[401400518,1768183845513,-150.0,0.00017415,2]
[401400521,1768183845884,-150.0,0.00017415,2]
[401400523,1768183845900,-150.0,0.00017415,2]
[401400525,1768183845910,-154.55098776,0.00017418,2]
[401400527,1768183845920,-154.55098776,0.00017436,2]
[401400529,1768183845929,-4195.66453999,0.00017453,2]
[401400530,1768183845939,-3257.83680369,0.00017453,2]
[401400531,1768183845948,-154.55098776,0.00017455,2]
[401400532,1768183845958,-1330.0,0.00017461,2]
[401400533,1768183845967,-1425.37,0.00017461,2]
[401400534,1768183845977,-626.064,0.00017461,2]
[401400535,1768183845987,-637.303,0.00017461,2]
[401400536,1768183845996,-1287.234,0.00017461,2]
[401400537,1768183846006,-903.0,0.00017468,2]
[401400538,1768183846015,-154.55098776,0.00017473,2]
[401400539,1768183846025,-154.55098776,0.00017491,2]
[401400540,1768183846035,-1400.0,0.000175,6]
[401400541,1768183846044,-154.55098776,0.00017509,2]
[401400542,1768183846054,-1000.0,0.00017525,2]
[401400543,1768183846063,-154.55098776,0.00017527,2]
[401400544,1768183846072,-154.55098776,0.00017545,2]
[401400545,1768183846082,-150.0,0.0001755,2]
[401400546,1768183846091,-150.0,0.0001755,2]
[401400547,1768183846100,-150.0,0.0001755,2]
[401400548,1768183846109,-406.0,0.00017554,2]
[401400549,1768183846118,-903.0,0.00017557,2]
[401400550,1768183846127,-154.55098776,0.00017564,2]
[401400551,1768183846136,-406.0,0.00017567,2]
[401400552,1768183846145,-171.49,0.00017572,2]
[401400553,1768183846155,-919.831,0.00017574,2]
[401400554,1768183846164,-1206.379,0.00017574,2]
[401400555,1768183846173,-154.55098776,0.00017582,2]
[401400556,1768183846183,-2437.0,0.00017582,2]
[401400557,1768183846191,-4821.0,0.00017582,2]
[401400558,1768183846200,-566.0,0.00017582,2]
[401400559,1768183846211,-1080.21743093,0.000176,2]
[401400560,1768183846229,-1000.0,0.000176,2]
[401400561,1768183846240,-154.55098776,0.000176,2]
[401400562,1768183846259,-1400.0,0.000176,6]
[401400563,1768183846280,-965.98,0.000176,2]
[401400564,1768183846300,-482.99,0.000176,2]
[401400565,1768183846321,-965.81,0.00017601,2]
[401400566,1768183846332,-482.99,0.00017601,2]
[401400567,1768183846342,-482.99,0.00017601,2]
[401400568,1768183846351,-482.99,0.00017601,2]
[401400569,1768183846361,-972.71,0.00017601,2]
[401400570,1768183846370,-1000.0,0.00017614,2]
[401400571,1768183846380,-154.55098776,0.00017618,2]
[401400572,1768183846394,-1000.0,0.00017621,2]
[401400573,1768183846402,-1000.0,0.00017621,2]
[401400574,1768183846411,-409.76256712,0.00017621,2]
[401400575,1768183846420,-502.19016938,0.00017621,2]
[401400576,1768183846431,-1000.0,0.00017621,2]
[401400577,1768183846441,-503.072831,0.00017621,2]
[401400578,1768183846453,-1000.0,0.00017621,2]
[401400579,1768183846462,-1000.0,0.00017621,2]
[401400580,1768183846471,-5034.0,0.00017633,2]
[401400581,1768183846481,-154.55098776,0.00017636,2]
[401400582,1768183846492,-150.0,0.0001764,2]
[401400583,1768183846502,-5052.68948619,0.0001764,2]
[401400584,1768183846513,-553.64373807,0.00017642,2]
[401400585,1768183846523,-903.0,0.00017645,2]
[401400586,1768183846532,-154.55098776,0.00017655,2]
[401400587,1768183846541,-25000.0,0.00017671,3]
[401400588,1768183846551,-154.55098776,0.00017673,2]
[401400589,1768183846561,-581.0,0.00017678,2]
[401400590,1768183846571,-162.0,0.0001768,2]
[401400591,1768183846580,-163.0,0.0001768,2]
[401400592,1768183846590,-25000.0,0.0001768,3]
[401400593,1768183846603,-150.0,0.0001768,2]
[401400594,1768183846612,-25000.0,0.00017689,3]
[401400595,1768183846622,-154.55098776,0.00017691,2]
[401400596,1768183846631,-25000.0,0.00017698,3]
[401400597,1768183846641,-1000.0,0.00017699,2]
[401400598,1768183846651,-150.0,0.000177,2]
[401400599,1768183846661,-1000.0,0.000177,2]
[401400600,1768183846670,-1400.0,0.000177,6]
[401400601,1768183846679,-25000.0,0.00017706,3]
[401400602,1768183846689,-1000.0,0.00017707,2]
[401400603,1768183846698,-1000.0,0.00017709,2]
[401400604,1768183846708,-154.55098776,0.00017709,2]
[401400605,1768183846717,-25000.0,0.00017715,3]
[401400606,1768183846726,-25000.0,0.00017724,3]
[401400607,1768183846736,-154.55098776,0.00017727,2]
[401400608,1768183846746,-1774.82095643,0.0001773,2]
[401400609,1768183846755,-24041.48500267,0.00017733,3]
[401400610,1768183846815,-186.17644642,0.00017733,3]
[401400611,1768183846862,-271.46602208,0.00017733,3]
[401400612,1768183846873,-416.62661885,0.00017733,3]
[401400613,1768183846884,-84.24590998,0.00017733,3]
[401400614,1768183846893,-661.17204148,0.00017734,2]
[401400615,1768183846965,-353.1863629,0.00017736,2]
[401400616,1768183846977,-52.8136371,0.00017736,2]
[401400617,1768183846987,-245.1863629,0.00017742,3]
[401400618,1768183847025,-9.434e-05,0.00017742,3]
[401400619,1768183847037,-385.17,0.00017742,3]
[401400620,1768183847225,-6556.0,0.00017582,2]
[401400621,1768183847235,-24369.64354276,0.00017742,3]
[401400622,1768183847245,-154.55098776,0.00017745,2]
[401400623,1768183847254,-2585.77614113,0.00017747,2]
[401400624,1768183847264,-25000.0,0.0001775,3]
[401400625,1768183847274,-25000.0,0.00017759,3]
[401400626,1768183847283,-154.55098776,0.00017764,2]
[401400627,1768183847293,-25000.0,0.00017768,3]
[401400628,1768183847305,-3500.0,0.0001777,2]
[401400629,1768183847315,-406.0,0.00017773,2]
[401400630,1768183847326,-25000.0,0.00017777,3]
[401400631,1768183847337,-151.0,0.00017777,2]
[401400632,1768183847347,-151.0,0.00017777,2]
[401400633,1768183847357,-151.0,0.00017777,2]
[401400634,1768183847367,-2761.794916,0.00017777,2]
[401400635,1768183847377,-2761.794916,0.00017777,2]
[401400636,1768183847389,-151.0,0.00017777,2]
[401400637,1768183847399,-183.116993,0.00017777,2]
[401400638,1768183847408,-2761.794916,0.00017777,2]
[401400639,1768183847418,-151.0,0.00017777,2]
[401400640,1768183847427,-183.116993,0.00017777,2]
[401400641,1768183847437,-2761.794916,0.00017777,2]
[401400642,1768183847446,-183.116993,0.00017777,2]
[401400643,1768183847456,-183.116993,0.00017777,2]
[401400644,1768183847466,-456.067411,0.00017777,2]
[401400645,1768183847476,-456.067411,0.00017777,2]
[401400646,1768183847486,-419.172727,0.00017777,2]
[401400647,1768183847495,-456.067411,0.00017777,2]
[401400648,1768183847505,-419.172727,0.00017777,2]
[401400649,1768183847514,-392.466669,0.00017777,2]
[401400650,1768183847523,-456.067411,0.00017777,2]
[401400651,1768183847532,-419.172727,0.00017777,2]
[401400652,1768183847542,-392.466669,0.00017777,2]
[401400653,1768183847551,-392.466669,0.00017777,2]
[401400654,1768183847561,-419.172727,0.00017777,2]
[401400655,1768183847570,-423.620833,0.00017777,2]
[401400656,1768183847580,-392.466669,0.00017777,2]
[401400657,1768183847590,-595.477852,0.00017777,2]
[401400658,1768183847600,-334.438596,0.00017777,2]
[401400659,1768183847609,-423.620833,0.00017777,2]
[401400660,1768183847618,-334.438596,0.00017777,2]
[401400661,1768183847628,-595.477852,0.00017777,2]
[401400662,1768183847637,-2585.77614113,0.00017778,2]
[401400663,1768183847647,-3555.23378768,0.0001778,2]
[401400664,1768183847657,-522.5253417,0.00017781,2]
[401400665,1768183847667,-154.55098776,0.00017782,2]
[401400666,1768183847677,-1000.0,0.00017784,2]
[401400667,1768183847687,-25000.0,0.00017786,3]
[401400668,1768183847696,-7044.9678224,0.0001779,2]
[401400669,1768183847705,-25000.0,0.00017794,3]
[401400670,1768183847715,-2000.0,0.000178,2]
[401400671,1768183847724,-715.25738682,0.000178,2]
[401400672,1768183847735,-154.55098776,0.000178,2]
[401400673,1768183847744,-1400.0,0.000178,6]
[401400674,1768183847755,-151.0,0.00017803,2]
[401400675,1768183847764,-161.335753,0.00017803,2]
[401400676,1768183847773,-371.782161,0.00017803,2]
[401400677,1768183847782,-5610.996194,0.00017803,2]
[401400678,1768183847791,-151.0,0.00017803,2]
[401400679,1768183847800,-3183.744276,0.00017803,2]
[401400680,1768183847809,-5027.90675838,0.00017803,2]
[401400681,1768183862359,500.0,0.0002739,120]
[401400682,1768183863642,309.62359655,0.0002739,120]
[401400683,1768183961772,300.0,0.000139,5]
[401400686,1768184033427,-245.23471979,0.00013725,2]
[401400687,1768184035457,-289.90197958,0.00013725,2]
[401400688,1768184037616,-184.72499494,0.00013725,2]
[401400689,1768184039147,-239.83158984,0.00013725,2]
[401400690,1768184040556,-267.01530089,0.00013725,2]
[401400691,1768184042676,-243.14365421,0.00013725,2]
[401400692,1768184046022,-311.08932954,0.00013725,2]
[401400693,1768184049719,-281.30536224,0.00013725,2]
[401400694,1768184051704,-178.27799937,0.00013725,2]
[401400695,1768184053212,-443.43511023,0.00013725,2]
[401400696,1768184055327,-233.97048591,0.00013725,2]
[401400697,1768184056738,-159.25570802,0.00013725,2]
[401400698,1768184058911,-183.37522052,0.00013725,2]
[401400699,1768184060405,-313.69994669,0.00013725,2]
[401400700,1768184062491,-351.40139381,0.00013725,2]
[401400701,1768184063949,-110.76968846,0.00013725,2]
[401400702,1768184063972,-168.67399136,0.00013725,2]
[401400703,1768184167889,-249.08506211,0.00013725,2]
[401400704,1768184167917,-131.4580832,0.00013725,2]
[401400705,1768184170375,-104.41425836,0.00013725,2]
[401400706,1768184170396,-235.87234156,0.00013725,2]
[401400707,1768184170419,-0.90122266,0.00013774,2]
[401400708,1768184287834,-263.10583184,0.00013725,2]
[401400709,1768184289468,-195.0,0.00013725,2]
[401400710,1768184292003,-214.7707599,0.00013725,2]
[401400711,1768184293516,-162.68115368,0.00013725,2]
[401400712,1768184295627,-172.36715775,0.00013725,2]
[401400713,1768184298726,-179.89631907,0.00013725,2]
[401400714,1768184300183,-192.77249302,0.00013725,2]
[401400715,1768184304078,-469.18683491,0.00013725,2]
[401400716,1768184305739,-306.68354983,0.00013725,2]
[401400717,1768184305762,-95.14179383,0.00013725,2]
[401400718,1768184307222,-300.0,0.00013725,2]
[401400719,1768184308392,1000.0,0.000202,30]
[401400720,1768184308722,-163.43658367,0.00013725,2]
[401400721,1768184310191,-563.29622034,0.00013725,2]
[401400722,1768184312289,-269.76846225,0.00013725,2]
[401400723,1768184315333,-275.73461415,0.00013725,2]
[401400724,1768184318607,-247.51841234,0.00013725,2]
[401400726,1768184320092,-156.67740367,0.00013725,2]
[401400727,1768184322318,-264.0,0.00013725,2]
[401400728,1768184325576,-370.14968596,0.00013725,2]
[401400729,1768184328755,-571.04814971,0.00013725,2]
[401400730,1768184332476,-282.63596466,0.00013725,2]
[401400731,1768184334055,-121.15542959,0.00013725,2]
[401400732,1768184334078,-114.74544876,0.00013725,2]
[401400733,1768184335969,-89.90922056,0.00013725,2]
[401400734,1768184335991,-176.90425617,0.00013725,2]
[401400735,1768184336013,-42.51852397,0.00013725,2]
[401400736,1768184339551,-134.3857322,0.00013725,2]
[401400737,1768184339576,-186.40952326,0.00013774,2]
[401400738,1768184422779,-621.2467606,0.00013725,2]
[401400739,1768184424700,-302.94244093,0.00013725,2]
[401400740,1768184427378,-260.16841016,0.00013725,2]
[401400741,1768184429878,-326.5415754,0.00013725,2]
[401400742,1768184432721,-328.03260443,0.00013725,2]
[401400743,1768184434220,-394.69662759,0.00013725,2]
[401400744,1768184437463,-188.95128885,0.00013725,2]
[401400745,1768184439558,-77.42029204,0.00013725,2]
[401400746,1768184439580,-191.61381049,0.00013726,2]
[401400747,1768184441101,-169.72518934,0.00013726,2]
[401400748,1768184445214,-201.82534366,0.00013726,2]
[401400749,1768184447993,-327.21199261,0.00013726,2]
[401400750,1768184448016,-10.77367982,0.00013774,2]
[401400751,1768184453963,-252.22632018,0.00013774,2]
[401400752,1768184453986,-31.51751227,0.00013774,2]
[401400753,1768184467946,-151.0,0.00013774,2]
[401400754,1768184467968,-31.17174181,0.00013774,2]
[401400755,1768184467989,-23.78977791,0.00013775,2]
[401400756,1768184473430,1001.0,0.00027397,120]
[401400757,1768184492985,1950.808,0.00013548,2]
[401400758,1768184493036,174.825,0.00013548,2]
[401400759,1768184493849,-184.55796464,0.00013725,2]
[401400760,1768184493879,-184.55796464,0.00013725,2]
[401400761,1768184493908,-64.5058325,0.00013774,2]
[401400762,1768184496071,-130.4941675,0.00013774,2]
[401400763,1768184496102,-21.83858934,0.00013775,2]
[401400764,1768184528401,-227.8,0.00013699,2]
[401400765,1768184528424,-91.2029748,0.00013705,2]
[401400766,1768184531273,-209.77886304,0.00013705,2]
[401400767,1768184533643,-292.05193882,0.00013705,2]
[401400768,1768184535091,-32.60049434,0.00013705,2]
[401400769,1768184535114,-207.41473185,0.00013737,2]
[401400770,1768184543343,-220.23941475,0.00013725,2]
[401400771,1768184545558,-296.10975086,0.00013725,2]
[401400772,1768184549212,-354.73263195,0.00013725,2]
[401400773,1768184551261,-327.69669949,0.00013725,2]
[401400774,1768184556432,-202.90743206,0.00013725,2]
[401400775,1768184558948,-90.91866794,0.00013725,2]
[401400776,1768184558972,-77.49253682,0.00013725,2]
[401400777,1768184561739,-181.29810512,0.00013725,2]
[401400778,1768184564163,-253.46353561,0.00013725,2]
[401400779,1768184566731,-214.45326535,0.00013725,2]
[401400780,1768184569479,-275.66674072,0.00013725,2]
[401400781,1768184571946,-343.46428555,0.00013725,2]
[401400782,1768184573915,-491.34645316,0.00013725,2]
[401400783,1768184576843,-524.58991717,0.00013725,2]
[401400784,1768184577948,-442.57908357,0.00013725,2]
[401400785,1768184580543,-209.83036742,0.00013725,2]
[401400786,1768184580565,-180.60937,0.00013725,2]
[401400787,1768184580591,-42.58526815,0.00013737,2]
[401400788,1768184580615,-84.9701101,0.00013775,2]
[401400789,1768184618414,-364.91422489,0.00013725,2]
[401400790,1768184632761,-206.41822793,0.00013725,2]
[401400791,1768184636496,-405.30337241,0.00013725,2]
[401400792,1768184638057,-291.08294395,0.00013725,2]
[401400793,1768184641629,-399.92843578,0.00013725,2]
[401400794,1768184645803,-217.69170634,0.00013725,2]
[401400795,1768184648796,-462.74262548,0.00013725,2]
[401400796,1768184652589,-431.31728174,0.00013725,2]
[401400797,1768184653693,-203.99999476,0.00013725,2]
[401400798,1768184657605,-292.82211161,0.00013725,2]
[401400799,1768184657632,-20.11289331,0.00013725,2]
[401400800,1768184662011,-106.31933496,0.00013725,2]
[401400801,1768184662034,-117.32918021,0.00013725,2]
[401400802,1768184679571,-40.8633609,0.00013725,2]
[401400803,1768184679592,-40.91966536,0.00013775,2]
[401400804,1768184679615,-250.0,0.00013785,2]
[401400805,1768184679639,-1200.0,0.00013823,2]
[401400806,1768184679660,-300.0,0.00013823,2]
[401400807,1768184679682,-150.0,0.00013823,2]
[401400808,1768184679708,-324.08130589,0.00013824,2]
[401400809,1768184679734,-500.0,0.00013824,2]
[401400810,1768184679758,-500.0,0.00013824,2]
[401400811,1768184679781,-500.0,0.00013824,2]
[401400812,1768184679804,-500.0,0.00013824,2]
[401400813,1768184679827,-500.0,0.00013824,2]
[401400814,1768184679850,-500.0,0.00013824,2]
[401400815,1768184679874,-500.0,0.00013824,2]
[401400816,1768184679896,-476.54577571,0.00013824,2]
[401400817,1768184679919,-500.0,0.00013824,2]
[401400818,1768184679940,-500.0,0.00013824,2]
[401400819,1768184679963,-500.0,0.00013824,2]
[401400820,1768184679983,-152.6064555,0.00013824,2]
[401400821,1768184680003,-171.51814271,0.00013824,2]
[401400822,1768184680027,-1893.46529393,0.00013825,2]
[401400823,1768184694532,-255.04792585,0.00013725,2]
[401400824,1768184696586,-300.08343105,0.00013725,2]
[401400825,1768184701396,-300.0,0.00013725,2]
[401400826,1768184702844,-155.85892198,0.00013725,2]
[401400827,1768184704933,-213.14254782,0.00013725,2]
[401400828,1768184707283,-296.16071329,0.00013725,2]
[401400829,1768184709353,-311.8925321,0.00013725,2]
[401400830,1768184710769,-224.74559645,0.00013725,2]
[401400831,1768184712748,-596.10329838,0.00013725,2]
[401400832,1768184717167,-152.74964676,0.00013725,2]
[401400833,1768184719211,-495.81137759,0.00013725,2]
[401400834,1768184721221,-241.02894289,0.00013725,2]
[401400835,1768184725289,-190.79785253,0.00013725,2]
[401400836,1768184728083,-218.4146248,0.00013725,2]
[401400837,1768184730599,-193.82804188,0.00013725,2]
[401400838,1768184732664,-340.26343159,0.00013725,2]
[401400839,1768184733245,239.12806409,0.0002739,120]
[401400840,1768184734149,-374.67708398,0.00013725,2]
[401400841,1768184735630,-218.10476758,0.00013725,2]
[401400842,1768184738813,-255.58768255,0.00013725,2]
[401400844,1768184831677,400.0,0.000139,5]
[401400846,1768184839116,-16.94481194,0.00013725,2]
[401400847,1768184839136,-154.87775071,0.00013725,2]
[401400848,1768184839157,-1200.0,0.00013824,2]
[401400849,1768184839178,-500.0,0.00013824,2]
[401400850,1768184839198,-300.0,0.00013824,2]
[401400851,1768184839218,-300.0,0.00013824,2]
[401400852,1768184839238,-150.0,0.00013824,2]
[401400853,1768184839265,-9966.5076529,0.00013825,2]
[401400855,1768184878940,151.0,0.00027397,120]
[401400856,1768184887462,151.0,0.00027397,120]
[401400857,1768184894886,151.0,0.00027397,120]
[401400858,1768184902362,151.0,0.00027397,120]
[401400860,1768184907574,2276.14696606,0.0001421,7]
[401400862,1768184911894,151.0,0.00027397,120]
[401400864,1768184919963,151.0,0.00027397,120]
[401400865,1768184928986,151.0,0.00027397,120]
[401400866,1768184936947,151.0,0.00027397,120]
[401400867,1768184945981,151.0,0.00027397,120]
[401400876,1768184953337,151.0,0.00027397,120]
[401400893,1768184962771,-367.0331,0.00013725,2]
[401400894,1768184965541,-465.28404926,0.00013725,2]
[401400895,1768184969085,-200.75092673,0.00013725,2]
[401400896,1768184970087,-237.89696486,0.00013725,2]
[401400897,1768184975638,-203.39282246,0.00013725,2]
[401400898,1768184977106,-412.5543034,0.00013725,2]
[401400899,1768184984865,-300.0,0.00013725,2]
[401400900,1768184989534,-307.59393408,0.00013725,2]
[401400901,1768184991491,-302.00082719,0.00013725,2]
[401400902,1768184993780,-197.99917281,0.00013725,2]
[401400903,1768184995308,-236.03898374,0.00013725,2]
[401400904,1768184997303,151.0,0.00027397,120]
[401400905,1768184999486,-167.55253785,0.00013725,2]
[401400906,1768185002314,-341.16755733,0.00013724,2]
[401400908,1768185005555,-255.03761572,0.00013724,2]
[401400909,1768185006415,151.0,0.00027397,120]
[401400910,1768185009308,-250.0,0.00013724,2]
[401400911,1768185012498,-353.79482695,0.00013724,2]
[401400912,1768185012525,-150.0,0.00013724,2]
[401400913,1768185012551,-142.58551783,0.00013725,2]
[401400914,1768185013905,151.0,0.00027397,120]
[401400915,1768185013954,-236.43861474,0.00013725,2]
[401400916,1768185015878,-192.96887362,0.00013715,2]
[401400917,1768185017963,-203.39282248,0.00013715,2]
[401400918,1768185020516,-184.46511752,0.00013715,2]
[401400919,1768185021849,151.0,0.00027397,120]
[401400920,1768185022095,-414.07977694,0.00013715,2]
[401400921,1768185024022,-166.13258014,0.00013725,2]
[401400922,1768185027222,-450.30390765,0.00013725,2]
[401400923,1768185028681,-271.38861775,0.00013725,2]
[401400924,1768185029129,151.0,0.00027397,120]
[401400937,1768185031783,-264.0,0.00013725,2]
[401400940,1768185031805,-776.15703811,0.00013725,2]
[401400942,1768185031862,-5971.57253943,0.00013725,2]
[401400943,1768185031918,-299029.91294331,0.00013725,2]
[401400944,1768185031929,-299.99,0.00013725,2]
[401400945,1768185031974,-834.9769566,0.00013725,2]
[401400946,1768185031986,-118866.32859201,0.00013725,2]
[401400947,1768185032033,-853.92747061,0.00013725,2]
[401400985,1768185033268,-344.86524192,0.00013725,2]
[401400986,1768185036332,151.0,0.00027397,120]
[401400987,1768185036867,-1000.04055834,0.00013725,2]
[401400988,1768185037940,-470.0,0.00013725,2]
[401400989,1768185037951,-480.96,0.00013725,2]
[401400990,1768185037962,-963.02821688,0.00013725,2]
[401400991,1768185037972,-45113.04396898,0.00013725,2]